[Event "Titled Tuesday Blitz May 24 Late 2022"]
[White "Martin Carmona, Gaston Manuel"]
[Black "Olafsson, Helgi"]
[WhiteFideId "22284567"]
[BlackFideId "2300010"]
[WhiteElo "2162"]
[BlackElo "2463"]
[Result "0-1"]
[Round "04"]
[TimeControl "180+1"]
[Date "2022.05.25"]
[WhiteClock "0:00:59"]
[BlackClock "0:00:51"]

1. d4 {[%clk 0:03:00]}  Nf6 {[%clk 0:02:59]} 2. c4 {[%clk 0:03:01]}  e6 {[%clk 0:02:59]} 3. Nc3 {[%clk 0:03:01]}  Bb4 {[%clk 0:02:59]} 4. Qc2 {[%clk 0:03:02]}  c5 {[%clk 0:02:59]} 5. dxc5 {[%clk 0:02:55]}  O-O {[%clk 0:02:59]} 6. Nf3 {[%clk 0:02:54]}  Nc6 {[%clk 0:02:54]} 7. a3 {[%clk 0:02:52]}  Bxc5 {[%clk 0:02:54]} 8. b4 {[%clk 0:02:51]}  Be7 {[%clk 0:02:54]} 9. e3 {[%clk 0:02:49]}  b6 {[%clk 0:02:50]} 10. Be2 {[%clk 0:02:47]}  Bb7 {[%clk 0:02:50]} 11. O-O {[%clk 0:02:48]}  Rc8 {[%clk 0:02:50]} 12. Bb2 {[%clk 0:02:48]}  a5 {[%clk 0:02:44]} 13. b5 {[%clk 0:02:45]}  Nb8 {[%clk 0:02:44]} 14. Qb3 {[%clk 0:02:37]}  d6 {[%clk 0:02:42]} 15. Na4 {[%clk 0:02:31]}  Nbd7 {[%clk 0:02:41]} 16. Rfd1 {[%clk 0:02:29]}  Ne4 {[%clk 0:02:39]} 17. Rac1 {[%clk 0:02:28]}  Qc7 {[%clk 0:02:38]} 18. Bd4 {[%clk 0:02:23]}  Rfe8 {[%clk 0:02:31]} 19. Qb2 {[%clk 0:02:22]}  Bf8 {[%clk 0:02:27]} 20. Bd3 {[%clk 0:02:17]}  e5 {[%clk 0:02:11]} 21. Bxe4 {[%clk 0:02:11]}  Bxe4 {[%clk 0:02:11]} 22. Bc3 {[%clk 0:02:11]}  Bxf3 {[%clk 0:02:07]} 23. gxf3 {[%clk 0:02:10]}  Qxc4 {[%clk 0:02:05]} 24. Qc2 {[%clk 0:02:06]}  Qe6 {[%clk 0:01:56]} 25. Qd3 {[%clk 0:02:00]}  g6 {[%clk 0:01:48]} 26. Nb2 {[%clk 0:01:57]}  Nc5 {[%clk 0:01:47]} 27. Qe2 {[%clk 0:01:43]}  d5 {[%clk 0:01:44]} 28. Nd3 {[%clk 0:01:38]}  Nxd3 {[%clk 0:01:33]} 29. Qxd3 {[%clk 0:01:37]}  Bxa3 {[%clk 0:01:27]} 30. Rc2 {[%clk 0:01:26]}  Bf8 {[%clk 0:01:22]} 31. Rcd2 {[%clk 0:01:17]}  Rc5 {[%clk 0:01:17]} 32. Bb2 {[%clk 0:01:14]}  Qd7 {[%clk 0:01:10]} 33. f4 {[%clk 0:01:03]}  Qxb5 {[%clk 0:01:01]} 34. Qxb5 {[%clk 0:01:03]}  Rxb5 {[%clk 0:01:01]} 35. Bxe5 {[%clk 0:01:03]}  a4 {[%clk 0:00:57]} 36. Rxd5 {[%clk 0:00:59]}  Rxd5 {[%clk 0:00:57]} 37. Rxd5 {[%clk 0:01:00]}  a3 {[%clk 0:00:55]} 38. Rd2 {[%clk 0:00:59]}  b5 {[%clk 0:00:51]} 0-1


[Site "https://www.chess.com"]

[Event "Titled Tuesday Blitz May 24 Late 2022"]
[White "Melikyan, Gnel"]
[Black "Vajda, Levente"]
[WhiteFideId "54109990"]
[BlackFideId "1203975"]
[WhiteElo "1772"]
[BlackElo "2573"]
[Result "0-1"]
[Round "04"]
[TimeControl "180+1"]
[Date "2022.05.24"]
[WhiteClock "0:00:51"]
[BlackClock "0:00:57"]

1. e4 {[%clk 0:03:00]}  c5 {[%clk 0:02:56]} 2. Nf3 {[%clk 0:03:00]}  d6 {[%clk 0:02:56]} 3. d4 {[%clk 0:03:00]}  cxd4 {[%clk 0:02:57]} 4. Nxd4 {[%clk 0:03:00]}  Nf6 {[%clk 0:02:58]} 5. Nc3 {[%clk 0:03:01]}  a6 {[%clk 0:02:57]} 6. Be3 {[%clk 0:03:01]}  e5 {[%clk 0:02:57]} 7. Nf3 {[%clk 0:03:01]}  Be6 {[%clk 0:02:57]} 8. Be2 {[%clk 0:02:55]}  Nbd7 {[%clk 0:02:57]} 9. O-O {[%clk 0:02:56]}  Rc8 {[%clk 0:02:57]} 10. Ng5 {[%clk 0:02:48]}  Bc4 {[%clk 0:02:56]} 11. Bxc4 {[%clk 0:02:47]}  Rxc4 {[%clk 0:02:57]} 12. Qd3 {[%clk 0:02:46]}  Rc8 {[%clk 0:02:40]} 13. Nd5 {[%clk 0:02:30]}  h6 {[%clk 0:02:40]} 14. Nxf6+ {[%clk 0:02:28]}  Nxf6 {[%clk 0:02:26]} 15. Nf3 {[%clk 0:02:27]}  Qc7 {[%clk 0:02:25]} 16. c3 {[%clk 0:02:22]}  Be7 {[%clk 0:02:18]} 17. Nd2 {[%clk 0:02:18]}  O-O {[%clk 0:02:15]} 18. f3 {[%clk 0:02:13]}  Qc6 {[%clk 0:02:09]} 19. Rfd1 {[%clk 0:02:11]}  Rfd8 {[%clk 0:02:08]} 20. Qe2 {[%clk 0:02:05]}  d5 {[%clk 0:02:06]} 21. exd5 {[%clk 0:02:05]}  Nxd5 {[%clk 0:02:06]} 22. Kh1 {[%clk 0:02:01]}  Nxe3 {[%clk 0:02:04]} 23. Qxe3 {[%clk 0:02:01]}  Bg5 {[%clk 0:01:33]} 24. Qe2 {[%clk 0:02:01]}  f5 {[%clk 0:01:29]} 25. Nb3 {[%clk 0:01:54]}  Qb5 {[%clk 0:01:25]} 26. Qc2 {[%clk 0:01:45]}  g6 {[%clk 0:01:17]} 27. Rxd8+ {[%clk 0:01:42]}  Rxd8 {[%clk 0:01:17]} 28. Rd1 {[%clk 0:01:42]}  Rd5 {[%clk 0:01:03]} 29. Nc1 {[%clk 0:01:21]}  Rd2 {[%clk 0:00:58]} 30. c4 {[%clk 0:00:51]}  Rxc2 {[%clk 0:00:57]} 0-1


[Site "https://www.chess.com"]

[Event "Titled Tuesday Blitz May 24 Late 2022"]
[White "Moral Garcia, Serafin"]
[Black "Carrasco Miranda, Andres"]
[WhiteFideId "2201925"]
[BlackFideId "3405990"]
[WhiteElo "2228"]
[BlackElo "2177"]
[Result "1-0"]
[Round "04"]
[TimeControl "180+1"]
[Date "2022.05.25"]
[WhiteClock "0:00:57"]
[BlackClock "0:00:06"]

1. e4 {[%clk 0:03:00]}  c5 {[%clk 0:02:59]} 2. Nf3 {[%clk 0:03:00]}  d6 {[%clk 0:02:59]} 3. d4 {[%clk 0:03:00]}  cxd4 {[%clk 0:02:59]} 4. Nxd4 {[%clk 0:03:01]}  Nf6 {[%clk 0:03:00]} 5. Nc3 {[%clk 0:03:01]}  a6 {[%clk 0:03:00]} 6. Be3 {[%clk 0:03:02]}  e5 {[%clk 0:03:00]} 7. Nf3 {[%clk 0:03:02]}  Be7 {[%clk 0:02:51]} 8. Bc4 {[%clk 0:03:02]}  Be6 {[%clk 0:02:50]} 9. Bb3 {[%clk 0:03:02]}  Qc7 {[%clk 0:02:44]} 10. O-O {[%clk 0:03:01]}  b5 {[%clk 0:02:41]} 11. Nh4 {[%clk 0:02:56]}  b4 {[%clk 0:02:32]} 12. Nd5 {[%clk 0:02:49]}  Nxd5 {[%clk 0:02:25]} 13. Bxd5 {[%clk 0:02:43]}  Bxd5 {[%clk 0:02:02]} 14. Qxd5 {[%clk 0:02:42]}  Qc6 {[%clk 0:02:02]} 15. Nf5 {[%clk 0:02:33]}  Qxd5 {[%clk 0:02:01]} 16. exd5 {[%clk 0:02:32]}  g6 {[%clk 0:02:01]} 17. Nxe7 {[%clk 0:02:31]}  Kxe7 {[%clk 0:02:01]} 18. a3 {[%clk 0:02:32]}  bxa3 {[%clk 0:02:00]} 19. Rxa3 {[%clk 0:02:31]}  f5 {[%clk 0:01:53]} 20. c4 {[%clk 0:02:23]}  f4 {[%clk 0:01:53]} 21. Bd2 {[%clk 0:02:23]}  Nd7 {[%clk 0:01:51]} 22. Rfa1 {[%clk 0:02:20]}  Rhb8 {[%clk 0:01:50]} 23. Bc3 {[%clk 0:02:15]}  Nc5 {[%clk 0:01:39]} 24. f3 {[%clk 0:02:12]}  h5 {[%clk 0:01:32]} 25. Kf1 {[%clk 0:02:11]}  g5 {[%clk 0:01:31]} 26. Ke2 {[%clk 0:02:05]}  g4 {[%clk 0:01:30]} 27. b4 {[%clk 0:02:05]}  gxf3+ {[%clk 0:01:26]} 28. gxf3 {[%clk 0:02:04]}  Nd7 {[%clk 0:01:24]} 29. Rxa6 {[%clk 0:02:04]}  Rxa6 {[%clk 0:01:20]} 30. Rxa6 {[%clk 0:02:03]}  Rg8 {[%clk 0:01:14]} 31. Kf1 {[%clk 0:01:57]}  Rc8 {[%clk 0:01:11]} 32. Rc6 {[%clk 0:01:50]}  Rxc6 {[%clk 0:01:00]} 33. dxc6 {[%clk 0:01:49]}  Nb6 {[%clk 0:00:53]} 34. c5 {[%clk 0:01:41]}  Nd5 {[%clk 0:00:53]} 35. Bd2 {[%clk 0:01:32]}  dxc5 {[%clk 0:00:53]} 36. bxc5 {[%clk 0:01:32]}  Ke6 {[%clk 0:00:36]} 37. Kg2 {[%clk 0:01:29]}  Ne7 {[%clk 0:00:35]} 38. c7 {[%clk 0:01:27]}  Kd5 {[%clk 0:00:31]} 39. Kh3 {[%clk 0:01:20]}  Kxc5 {[%clk 0:00:22]} 40. Kh4 {[%clk 0:01:20]}  Kd4 {[%clk 0:00:20]} 41. Kxh5 {[%clk 0:01:19]}  Kd3 {[%clk 0:00:20]} 42. Bb4 {[%clk 0:01:19]}  Nc8 {[%clk 0:00:20]} 43. Kg4 {[%clk 0:01:18]}  Ke2 {[%clk 0:00:17]} 44. h4 {[%clk 0:01:15]}  e4 {[%clk 0:00:13]} 45. fxe4 {[%clk 0:01:16]}  f3 {[%clk 0:00:13]} 46. Bc5 {[%clk 0:01:16]}  Nd6 {[%clk 0:00:13]} 47. h5 {[%clk 0:01:10]}  Nxe4 {[%clk 0:00:12]} 48. c8=Q {[%clk 0:01:09]}  Nf6+ {[%clk 0:00:08]} 49. Kh4 {[%clk 0:01:05]}  Ne4 {[%clk 0:00:07]} 50. Qe6 {[%clk 0:01:03]}  Kd3 {[%clk 0:00:06]} 51. Bb6 {[%clk 0:00:57]} 1-0


[Site "https://www.chess.com"]

[Event "Titled Tuesday Blitz May 24 Late 2022"]
[White "Motylev, Alexander"]
[Black "Meunier-Pion, Jean"]
[WhiteFideId "4121830"]
[BlackFideId "20685327"]
[WhiteElo "2470"]
[BlackElo "2124"]
[Result "0-1"]
[Round "04"]
[TimeControl "180+1"]
[Date "2022.05.25"]
[WhiteClock "0:00:03"]
[BlackClock "0:00:08"]

1. e4 {[%clk 0:03:00]}  c5 {[%clk 0:03:00]} 2. Nc3 {[%clk 0:02:59]}  d6 {[%clk 0:02:59]} 3. f4 {[%clk 0:02:56]}  g6 {[%clk 0:02:59]} 4. Nf3 {[%clk 0:02:55]}  Bg7 {[%clk 0:02:58]} 5. Bb5+ {[%clk 0:02:55]}  Bd7 {[%clk 0:02:57]} 6. Bc4 {[%clk 0:02:56]}  Nc6 {[%clk 0:02:56]} 7. O-O {[%clk 0:02:56]}  e6 {[%clk 0:02:57]} 8. f5 {[%clk 0:02:55]}  Nge7 {[%clk 0:02:45]} 9. Ng5 {[%clk 0:02:44]}  gxf5 {[%clk 0:02:42]} 10. e5 {[%clk 0:02:43]}  Nxe5 {[%clk 0:02:38]} 11. Be2 {[%clk 0:02:38]}  h6 {[%clk 0:02:32]} 12. Nh3 {[%clk 0:02:38]}  N7g6 {[%clk 0:02:28]} 13. Kh1 {[%clk 0:02:37]}  Bc6 {[%clk 0:02:22]} 14. d4 {[%clk 0:02:34]}  cxd4 {[%clk 0:02:22]} 15. Qxd4 {[%clk 0:02:34]}  Rg8 {[%clk 0:02:21]} 16. Qf2 {[%clk 0:02:20]}  Nh4 {[%clk 0:02:13]} 17. Nf4 {[%clk 0:02:19]}  Bf6 {[%clk 0:01:52]} 18. Rg1 {[%clk 0:02:19]}  Qb6 {[%clk 0:01:35]} 19. Qe1 {[%clk 0:01:58]}  Bg5 {[%clk 0:01:21]} 20. Bh5 {[%clk 0:01:43]}  Bxf4 {[%clk 0:00:54]} 21. Qxh4 {[%clk 0:01:43]}  Bg5 {[%clk 0:00:49]} 22. Qh3 {[%clk 0:01:38]}  Bxc1 {[%clk 0:00:37]} 23. Raxc1 {[%clk 0:01:37]}  Qxb2 {[%clk 0:00:38]} 24. Ne2 {[%clk 0:01:34]}  O-O-O {[%clk 0:00:33]} 25. Rb1 {[%clk 0:01:26]}  Qxc2 {[%clk 0:00:26]} 26. Rbc1 {[%clk 0:01:14]}  Nd3 {[%clk 0:00:20]} 27. Qe3 {[%clk 0:01:04]}  Nxc1 {[%clk 0:00:19]} 28. Rxc1 {[%clk 0:01:04]}  Qe4 {[%clk 0:00:17]} 29. Qxe4 {[%clk 0:00:59]}  fxe4 {[%clk 0:00:18]} 30. Bxf7 {[%clk 0:00:59]}  Rge8 {[%clk 0:00:15]} 31. Nd4 {[%clk 0:00:54]}  Kd7 {[%clk 0:00:14]} 32. Bxe8+ {[%clk 0:00:53]}  Rxe8 {[%clk 0:00:14]} 33. Kg1 {[%clk 0:00:53]}  Rf8 {[%clk 0:00:14]} 34. Rc3 {[%clk 0:00:49]}  e5 {[%clk 0:00:14]} 35. Nb3 {[%clk 0:00:42]}  b6 {[%clk 0:00:13]} 36. Rh3 {[%clk 0:00:41]}  Rf6 {[%clk 0:00:13]} 37. Rg3 {[%clk 0:00:42]}  Bb5 {[%clk 0:00:12]} 38. h3 {[%clk 0:00:39]}  Kc6 {[%clk 0:00:11]} 39. Rc3+ {[%clk 0:00:35]}  Kd5 {[%clk 0:00:10]} 40. Rg3 {[%clk 0:00:30]}  a5 {[%clk 0:00:06]} 41. Nd2 {[%clk 0:00:17]}  Bd3 {[%clk 0:00:07]} 42. Nb3 {[%clk 0:00:17]}  Kc4 {[%clk 0:00:06]} 43. Nd2+ {[%clk 0:00:16]}  Kd4 {[%clk 0:00:04]} 44. Nb3+ {[%clk 0:00:16]}  Kc3 {[%clk 0:00:04]} 45. Rg8 {[%clk 0:00:15]}  d5 {[%clk 0:00:04]} 46. Rc8+ {[%clk 0:00:15]}  Kb2 {[%clk 0:00:04]} 47. Nd2 {[%clk 0:00:14]}  Kxa2 {[%clk 0:00:04]} 48. Rd8 {[%clk 0:00:07]}  d4 {[%clk 0:00:04]} 49. Rd5 {[%clk 0:00:07]}  e3 {[%clk 0:00:04]} 50. Nf3 {[%clk 0:00:07]}  Be4 {[%clk 0:00:03]} 51. Rxe5 {[%clk 0:00:05]}  Bxf3 {[%clk 0:00:03]} 52. gxf3 {[%clk 0:00:05]}  Rxf3 {[%clk 0:00:04]} 53. Rd5 {[%clk 0:00:05]}  Rf4 {[%clk 0:00:04]} 54. Kg2 {[%clk 0:00:04]}  Rf2+ {[%clk 0:00:05]} 55. Kg3 {[%clk 0:00:04]}  Rd2 {[%clk 0:00:06]} 56. Kf3 {[%clk 0:00:04]}  Ka3 {[%clk 0:00:05]} 57. Rb5 {[%clk 0:00:04]}  Rb2 {[%clk 0:00:06]} 58. Rd5 {[%clk 0:00:04]}  Rb4 {[%clk 0:00:06]} 59. Ke2 {[%clk 0:00:04]}  Kb3 {[%clk 0:00:06]} 60. Kd3 {[%clk 0:00:05]}  a4 {[%clk 0:00:07]} 61. Re5 {[%clk 0:00:03]}  a3 {[%clk 0:00:07]} 62. Rf5 {[%clk 0:00:02]}  a2 {[%clk 0:00:07]} 63. Rf1 {[%clk 0:00:03]}  Kb2 {[%clk 0:00:08]} 0-1


[Site "https://www.chess.com"]

[Event "Titled Tuesday Blitz May 24 Late 2022"]
[White "Munoz, Francisco Javier"]
[Black "Boder, Jan"]
[WhiteFideId "128368"]
[BlackFideId "16243226"]
[WhiteElo "2383"]
[BlackElo "2064"]
[Result "0-1"]
[Round "04"]
[TimeControl "180+1"]
[Date "2022.05.25"]
[WhiteClock "0:01:39"]
[BlackClock "0:00:56"]

1. e4 {[%clk 0:03:00]}  c5 {[%clk 0:02:59]} 2. Nc3 {[%clk 0:03:01]}  g6 {[%clk 0:02:59]} 3. b3 {[%clk 0:03:02]}  Bg7 {[%clk 0:02:59]} 4. Bb2 {[%clk 0:03:03]}  Nc6 {[%clk 0:03:00]} 5. Qf3 {[%clk 0:03:03]}  Nd4 {[%clk 0:02:59]} 6. Qd3 {[%clk 0:03:03]}  b6 {[%clk 0:02:50]} 7. O-O-O {[%clk 0:03:00]}  a5 {[%clk 0:02:46]} 8. a4 {[%clk 0:03:00]}  Ba6 {[%clk 0:02:45]} 9. Nb5 {[%clk 0:02:55]}  Bxb5 {[%clk 0:02:45]} 10. axb5 {[%clk 0:02:55]}  a4 {[%clk 0:02:46]} 11. bxa4 {[%clk 0:02:53]}  Rxa4 {[%clk 0:02:44]} 12. Nf3 {[%clk 0:02:52]}  Qa8 {[%clk 0:02:42]} 13. Qc3 {[%clk 0:02:43]}  Nb3+ {[%clk 0:02:21]} 14. cxb3 {[%clk 0:02:42]}  Bxc3 {[%clk 0:02:19]} 15. dxc3 {[%clk 0:02:43]}  Ra1+ {[%clk 0:01:50]} 16. Bxa1 {[%clk 0:02:41]}  Qxa1+ {[%clk 0:01:51]} 17. Kc2 {[%clk 0:02:39]}  Qa2+ {[%clk 0:01:49]} 18. Kd3 {[%clk 0:02:37]}  Qxb3 {[%clk 0:01:48]} 19. Be2 {[%clk 0:02:35]}  Nf6 {[%clk 0:01:45]} 20. Nd2 {[%clk 0:02:25]}  Qxb5+ {[%clk 0:01:39]} 21. Ke3 {[%clk 0:02:24]}  Qc6 {[%clk 0:01:38]} 22. c4 {[%clk 0:02:22]}  O-O {[%clk 0:01:37]} 23. f3 {[%clk 0:02:22]}  Ra8 {[%clk 0:01:27]} 24. Ra1 {[%clk 0:02:21]}  Rxa1 {[%clk 0:01:25]} 25. Rxa1 {[%clk 0:02:22]}  Qd6 {[%clk 0:01:26]} 26. Ra8+ {[%clk 0:02:21]}  Kg7 {[%clk 0:01:25]} 27. Bd3 {[%clk 0:01:59]}  Qxh2 {[%clk 0:01:21]} 28. g4 {[%clk 0:01:55]}  Qg1+ {[%clk 0:01:09]} 29. Ke2 {[%clk 0:01:54]}  d6 {[%clk 0:01:09]} 30. Rb8 {[%clk 0:01:51]}  Nd7 {[%clk 0:01:09]} 31. Rb7 {[%clk 0:01:42]}  Ne5 {[%clk 0:01:07]} 32. Bc2 {[%clk 0:01:42]}  Qg2+ {[%clk 0:01:01]} 33. Kd1 {[%clk 0:01:38]}  Nxf3 {[%clk 0:00:58]} 34. Nxf3 {[%clk 0:01:39]}  Qxf3+ {[%clk 0:00:58]} 35. Kc1 {[%clk 0:01:40]}  Qxg4 {[%clk 0:00:56]} 36. Rxe7 {[%clk 0:01:39]}  Qg5+ {[%clk 0:00:56]} 0-1


[Site "https://www.chess.com"]

[Event "Titled Tuesday Blitz May 24 Late 2022"]
[White "Nazaretyan, Tigran"]
[Black "Stojanovski, Sandi"]
[WhiteFideId "24162345"]
[BlackFideId "1403249"]
[WhiteElo "2225"]
[BlackElo "2339"]
[Result "1-0"]
[Round "04"]
[TimeControl "180+1"]
[Date "2022.05.25"]
[WhiteClock "0:00:59"]
[BlackClock "0:00:02"]

1. d4 {[%clk 0:03:00]}  Nf6 {[%clk 0:03:00]} 2. c4 {[%clk 0:03:00]}  e6 {[%clk 0:03:01]} 3. Nf3 {[%clk 0:03:00]}  c5 {[%clk 0:03:00]} 4. e3 {[%clk 0:02:59]}  d5 {[%clk 0:02:58]} 5. a3 {[%clk 0:02:59]}  cxd4 {[%clk 0:02:50]} 6. exd4 {[%clk 0:02:58]}  Nc6 {[%clk 0:02:44]} 7. Nc3 {[%clk 0:02:57]}  a6 {[%clk 0:02:35]} 8. c5 {[%clk 0:02:54]}  Ne4 {[%clk 0:02:30]} 9. Bd3 {[%clk 0:02:52]}  f5 {[%clk 0:02:09]} 10. Ne2 {[%clk 0:02:51]}  Be7 {[%clk 0:02:07]} 11. b4 {[%clk 0:02:42]}  O-O {[%clk 0:02:06]} 12. O-O {[%clk 0:02:42]}  Bf6 {[%clk 0:02:02]} 13. Bb2 {[%clk 0:02:38]}  Bd7 {[%clk 0:01:57]} 14. Nf4 {[%clk 0:02:27]}  Qc7 {[%clk 0:01:53]} 15. Nh5 {[%clk 0:02:21]}  Be8 {[%clk 0:01:34]} 16. Nxf6+ {[%clk 0:02:19]}  Rxf6 {[%clk 0:01:35]} 17. Ne5 {[%clk 0:02:17]}  Nxe5 {[%clk 0:01:22]} 18. dxe5 {[%clk 0:02:17]}  Rg6 {[%clk 0:01:17]} 19. f3 {[%clk 0:02:12]}  Ng5 {[%clk 0:01:16]} 20. Kh1 {[%clk 0:02:11]}  Bb5 {[%clk 0:01:09]} 21. Bxb5 {[%clk 0:01:59]}  axb5 {[%clk 0:01:10]} 22. a4 {[%clk 0:01:59]}  bxa4 {[%clk 0:00:24]} 23. Rxa4 {[%clk 0:01:58]}  Rf8 {[%clk 0:00:25]} 24. b5 {[%clk 0:01:52]}  Nf7 {[%clk 0:00:10]} 25. f4 {[%clk 0:01:49]}  Qd8 {[%clk 0:00:10]} 26. Ra7 {[%clk 0:01:29]}  Qh4 {[%clk 0:00:04]} 27. Rxb7 {[%clk 0:01:25]}  Rh6 {[%clk 0:00:03]} 28. h3 {[%clk 0:01:24]}  Rg6 {[%clk 0:00:03]} 29. Bd4 {[%clk 0:01:17]}  Nh6 {[%clk 0:00:03]} 30. Qe1 {[%clk 0:01:10]}  Qh5 {[%clk 0:00:01]} 31. c6 {[%clk 0:01:02]}  Ng4 {[%clk 0:00:02]} 32. Bc5 {[%clk 0:00:59]} 1-0


[Site "https://www.chess.com"]

[Event "Titled Tuesday Blitz May 24 Late 2022"]
[White "Nozdrachev, Leonid"]
[Black "Petrova, Irina"]
[WhiteFideId "24113433"]
[BlackFideId "14124122"]
[WhiteElo "2255"]
[BlackElo "1993"]
[Result "1-0"]
[Round "04"]
[TimeControl "180+1"]
[Date "2022.05.25"]
[WhiteClock "0:01:42"]
[BlackClock "0:01:15"]

1. e4 {[%clk 0:02:56]}  d6 {[%clk 0:03:00]} 2. d4 {[%clk 0:02:52]}  Nf6 {[%clk 0:03:01]} 3. f3 {[%clk 0:02:52]}  e5 {[%clk 0:03:01]} 4. dxe5 {[%clk 0:02:50]}  dxe5 {[%clk 0:03:01]} 5. Qxd8+ {[%clk 0:02:51]}  Kxd8 {[%clk 0:03:02]} 6. Bc4 {[%clk 0:02:50]}  Be6 {[%clk 0:03:00]} 7. Bxe6 {[%clk 0:02:50]}  fxe6 {[%clk 0:03:00]} 8. Nh3 {[%clk 0:02:50]}  h6 {[%clk 0:02:59]} 9. Nf2 {[%clk 0:02:50]}  Nbd7 {[%clk 0:02:57]} 10. Nd3 {[%clk 0:02:51]}  Bd6 {[%clk 0:02:56]} 11. Nd2 {[%clk 0:02:52]}  Ke7 {[%clk 0:02:55]} 12. a4 {[%clk 0:02:52]}  c6 {[%clk 0:02:48]} 13. b3 {[%clk 0:02:51]}  Rad8 {[%clk 0:02:47]} 14. Bb2 {[%clk 0:02:51]}  Nh5 {[%clk 0:02:26]} 15. Nc4 {[%clk 0:02:48]}  Nf4 {[%clk 0:02:25]} 16. Nxf4 {[%clk 0:02:39]}  exf4 {[%clk 0:02:26]} 17. Nxd6 {[%clk 0:02:39]}  Kxd6 {[%clk 0:02:25]} 18. Bxg7 {[%clk 0:02:38]}  Rhg8 {[%clk 0:02:25]} 19. O-O-O+ {[%clk 0:02:37]}  Kc7 {[%clk 0:02:24]} 20. Bxh6 {[%clk 0:02:37]}  Rxg2 {[%clk 0:02:24]} 21. Bxf4+ {[%clk 0:02:37]}  e5 {[%clk 0:02:24]} 22. Bg3 {[%clk 0:02:35]}  Rf8 {[%clk 0:02:22]} 23. Rd3 {[%clk 0:02:35]}  Rh8 {[%clk 0:02:19]} 24. Rhd1 {[%clk 0:02:33]}  Rh7 {[%clk 0:02:18]} 25. a5 {[%clk 0:02:27]}  Re7 {[%clk 0:02:16]} 26. R3d2 {[%clk 0:02:25]}  Rxd2 {[%clk 0:02:12]} 27. Kxd2 {[%clk 0:02:26]}  Nf8 {[%clk 0:02:09]} 28. Ke3 {[%clk 0:02:24]}  Ng6 {[%clk 0:02:08]} 29. h4 {[%clk 0:02:23]}  Rh7 {[%clk 0:02:03]} 30. Rh1 {[%clk 0:02:23]}  Kd6 {[%clk 0:02:03]} 31. h5 {[%clk 0:02:22]}  Ne7 {[%clk 0:02:02]} 32. h6 {[%clk 0:02:17]}  Ke6 {[%clk 0:02:01]} 33. f4 {[%clk 0:02:09]}  exf4+ {[%clk 0:02:00]} 34. Bxf4 {[%clk 0:02:10]}  Ng6 {[%clk 0:02:00]} 35. Rh5 {[%clk 0:02:05]}  b6 {[%clk 0:01:43]} 36. a6 {[%clk 0:02:04]}  c5 {[%clk 0:01:37]} 37. c4 {[%clk 0:01:53]}  Kf6 {[%clk 0:01:34]} 38. Rd5 {[%clk 0:01:52]}  Ke7 {[%clk 0:01:22]} 39. Bg5+ {[%clk 0:01:46]}  Ke6 {[%clk 0:01:21]} 40. Rd8 {[%clk 0:01:44]}  Ne5 {[%clk 0:01:17]} 41. Re8+ {[%clk 0:01:42]}  Kd6 {[%clk 0:01:15]} 42. Bf4 {[%clk 0:01:42]} 1-0


[Site "https://www.chess.com"]

[Event "Titled Tuesday Blitz May 24 Late 2022"]
[White "Oparin, Grigoriy"]
[Black "Drygalov, Andrey"]
[WhiteFideId "24125890"]
[BlackFideId "24171735"]
[WhiteElo "2665"]
[BlackElo "2540"]
[Result "0-1"]
[Round "04"]
[TimeControl "180+1"]
[Date "2022.05.24"]
[WhiteClock "0:00:14"]
[BlackClock "0:00:31"]

1. d4 {[%clk 0:03:00]}  d5 {[%clk 0:02:58]} 2. c4 {[%clk 0:03:01]}  c6 {[%clk 0:02:59]} 3. Nf3 {[%clk 0:03:01]}  Nf6 {[%clk 0:02:59]} 4. g3 {[%clk 0:03:01]}  g6 {[%clk 0:02:57]} 5. Bg2 {[%clk 0:03:01]}  Bg7 {[%clk 0:02:58]} 6. Nbd2 {[%clk 0:03:02]}  O-O {[%clk 0:02:58]} 7. b3 {[%clk 0:03:03]}  a5 {[%clk 0:02:56]} 8. Bb2 {[%clk 0:03:03]}  Bf5 {[%clk 0:02:55]} 9. O-O {[%clk 0:03:03]}  Ne4 {[%clk 0:02:55]} 10. e3 {[%clk 0:03:03]}  a4 {[%clk 0:02:52]} 11. Nxe4 {[%clk 0:03:03]}  Bxe4 {[%clk 0:02:52]} 12. Qe2 {[%clk 0:03:03]}  Nd7 {[%clk 0:02:50]} 13. Rfc1 {[%clk 0:03:03]}  Nf6 {[%clk 0:02:42]} 14. Bf1 {[%clk 0:02:59]}  Bf5 {[%clk 0:02:39]} 15. Ne5 {[%clk 0:02:58]}  Ne4 {[%clk 0:02:37]} 16. Ba3 {[%clk 0:02:42]}  Re8 {[%clk 0:02:36]} 17. f3 {[%clk 0:02:39]}  Nd6 {[%clk 0:02:36]} 18. cxd5 {[%clk 0:02:36]}  cxd5 {[%clk 0:02:36]} 19. Qb2 {[%clk 0:02:32]}  Be6 {[%clk 0:02:32]} 20. g4 {[%clk 0:02:26]}  f6 {[%clk 0:02:26]} 21. Nd3 {[%clk 0:02:26]}  Bf7 {[%clk 0:02:26]} 22. bxa4 {[%clk 0:02:21]}  Nc4 {[%clk 0:02:21]} 23. Qb3 {[%clk 0:02:15]}  Nxe3 {[%clk 0:02:21]} 24. Re1 {[%clk 0:02:15]}  Nxf1 {[%clk 0:02:19]} 25. Kxf1 {[%clk 0:02:13]}  e5 {[%clk 0:02:18]} 26. Bc5 {[%clk 0:02:00]}  e4 {[%clk 0:02:17]} 27. Nf2 {[%clk 0:02:01]}  f5 {[%clk 0:02:17]} 28. Kg2 {[%clk 0:01:32]}  Qh4 {[%clk 0:02:06]} 29. Rab1 {[%clk 0:01:19]}  h5 {[%clk 0:02:04]} 30. gxf5 {[%clk 0:01:13]}  gxf5 {[%clk 0:01:57]} 31. fxe4 {[%clk 0:01:13]}  dxe4 {[%clk 0:01:56]} 32. Qg3 {[%clk 0:01:14]}  Qxg3+ {[%clk 0:01:47]} 33. hxg3 {[%clk 0:01:15]}  Rxa4 {[%clk 0:01:47]} 34. Re2 {[%clk 0:01:02]}  Rxa2 {[%clk 0:01:42]} 35. Rxa2 {[%clk 0:01:02]}  Bxa2 {[%clk 0:01:42]} 36. Re1 {[%clk 0:00:46]}  Rd8 {[%clk 0:01:12]} 37. Nh3 {[%clk 0:00:35]}  Bxd4 {[%clk 0:01:10]} 38. Bxd4 {[%clk 0:00:36]}  Rxd4 {[%clk 0:01:11]} 39. Nf4 {[%clk 0:00:37]}  b5 {[%clk 0:01:07]} 40. Re2 {[%clk 0:00:36]}  Bc4 {[%clk 0:01:05]} 41. Rb2 {[%clk 0:00:35]}  e3 {[%clk 0:00:49]} 42. Kf3 {[%clk 0:00:33]}  Rd2 {[%clk 0:00:49]} 43. Rb1 {[%clk 0:00:28]}  e2 {[%clk 0:00:49]} 44. Ra1 {[%clk 0:00:16]}  Rd1 {[%clk 0:00:34]} 45. Ra8+ {[%clk 0:00:15]}  Kf7 {[%clk 0:00:35]} 46. Ra7+ {[%clk 0:00:16]}  Ke8 {[%clk 0:00:32]} 47. Nxe2 {[%clk 0:00:14]}  Rf1+ {[%clk 0:00:32]} 48. Ke3 {[%clk 0:00:13]}  Re1 {[%clk 0:00:32]} 49. Kf4 {[%clk 0:00:14]}  Rxe2 {[%clk 0:00:31]} 50. Kxf5 {[%clk 0:00:14]} 0-1


[Site "https://www.chess.com"]